[Event "*** Titled Tuesday Blitz"]
[Site "Chess.com"]
[Date "2021.02.02"]
[Round "10"]
[White "JoachimMouhamad"]
[Black "TimKett"]
[Result "0-1"]
[WhiteElo "2289"]
[BlackElo "2201"]
[TimeControl "180+1"]
[EndTime "11:56:37 PST"]
[Termination "TimKett won by resignation"]

1. e4 {[%clk 0:03:00.9]} 1... e5 {[%clk 0:02:59.5]} 2. Nf3 {[%clk 0:03:00.7]}
2... Nc6 {[%clk 0:02:59.9]} 3. Bc4 {[%clk 0:02:59]} 3... Nf6 {[%clk 0:02:58.5]}
4. d3 {[%clk 0:02:58.5]} 4... Bc5 {[%clk 0:02:56.7]} 5. O-O {[%clk 0:02:55.9]}
5... d6 {[%clk 0:02:57.1]} 6. c3 {[%clk 0:02:55.3]} 6... a6 {[%clk 0:02:57.7]}
7. Bb3 {[%clk 0:02:54.2]} 7... Ba7 {[%clk 0:02:57.1]} 8. Nbd2 {[%clk 0:02:50.8]}
8... Ne7 {[%clk 0:02:57.3]} 9. a4 {[%clk 0:02:39.2]} 9... Ng6 {[%clk 0:02:57.4]}
10. Re1 {[%clk 0:02:35.7]} 10... O-O {[%clk 0:02:56.8]} 11. Nf1 {[%clk
0:02:20.8]} 11... Kh8 {[%clk 0:02:45.4]} 12. Ng3 {[%clk 0:02:11.3]} 12... Ng4
{[%clk 0:02:43]} 13. Re2 {[%clk 0:02:01.8]} 13... f5 {[%clk 0:02:42.1]} 14. Nxf5
{[%clk 0:02:00.2]} 14... Bxf5 {[%clk 0:02:40.8]} 15. exf5 {[%clk 0:02:01.1]}
15... Rxf5 {[%clk 0:02:40.6]} 16. Be6 {[%clk 0:01:47.6]} 16... Nxf2 {[%clk
0:02:38.4]} 17. Rxf2 {[%clk 0:01:42.1]} 17... Rf6 {[%clk 0:02:37.4]} 18. Bh3
{[%clk 0:01:22.3]} 18... Bxf2+ {[%clk 0:02:11.8]} 19. Kxf2 {[%clk 0:01:22.4]}
19... Nh4 {[%clk 0:02:07.5]} 20. Kg1 {[%clk 0:01:14]} 20... Nxf3+ {[%clk
0:02:05.4]} 21. gxf3 {[%clk 0:01:14.9]} 21... Rg6+ {[%clk 0:02:03]} 22. Kh1
{[%clk 0:01:10.3]} 22... Qh4 {[%clk 0:02:01.7]} 23. Qf1 {[%clk 0:01:03]} 23...
Rf8 {[%clk 0:01:55]} 24. Be3 {[%clk 0:00:52.1]} 24... Rgf6 {[%clk 0:01:43.4]}
25. Bg2 {[%clk 0:00:50.6]} 25... d5 {[%clk 0:01:35.9]} 26. Qf2 {[%clk
0:00:50.2]} 26... Qxf2 {[%clk 0:01:32.7]} 27. Bxf2 {[%clk 0:00:50.1]} 27... e4
{[%clk 0:01:33.1]} 28. dxe4 {[%clk 0:00:49.8]} 28... dxe4 {[%clk 0:01:33.3]} 29.
Bd4 {[%clk 0:00:48.2]} 29... exf3 {[%clk 0:01:33]} 30. Bxf6 {[%clk 0:00:46.8]}
30... fxg2+ {[%clk 0:01:32.7]} 31. Kxg2 {[%clk 0:00:46.7]} 31... Rxf6 {[%clk
0:01:32.2]} 32. Rd1 {[%clk 0:00:46.2]} 32... h6 {[%clk 0:01:21.5]} 33. Rd7
{[%clk 0:00:46]} 33... Rb6 {[%clk 0:01:21.5]} 34. b4 {[%clk 0:00:40.5]} 34...
Rc6 {[%clk 0:01:19.2]} 35. Rd3 {[%clk 0:00:41]} 35... Kh7 {[%clk 0:01:15.5]} 36.
Kf3 {[%clk 0:00:40.6]} 36... Kg6 {[%clk 0:01:15.3]} 37. Ke4 {[%clk 0:00:38.3]}
37... Kf6 {[%clk 0:01:12.6]} 38. h4 {[%clk 0:00:30.2]} 38... g5 {[%clk
0:01:11.9]} 39. hxg5+ {[%clk 0:00:29.7]} 39... hxg5 {[%clk 0:01:12]} 40. Rf3+
{[%clk 0:00:26.9]} 40... Kg6 {[%clk 0:01:08.9]} 41. Rd3 {[%clk 0:00:20.1]} 41...
g4 {[%clk 0:01:04.9]} 42. Kf4 {[%clk 0:00:20.3]} 42... Rc4+ {[%clk 0:01:04.9]}
43. Kg3 {[%clk 0:00:21]} 43... c6 {[%clk 0:00:56.2]} 44. a5 {[%clk 0:00:20.4]}
44... Kf5 {[%clk 0:00:55.3]} 45. Kg2 {[%clk 0:00:12.7]} 45... Kf4 {[%clk
0:00:51.8]} 46. Rd7 {[%clk 0:00:12.9]} 46... Rxc3 {[%clk 0:00:51.1]} 47. Rxb7
{[%clk 0:00:13.1]} 47... Rc2+ {[%clk 0:00:51.1]} 48. Kf1 {[%clk 0:00:13.8]}
48... Rb2 {[%clk 0:00:46.8]} 49. Rb6 {[%clk 0:00:10.8]} 49... Kf3 {[%clk
0:00:46.1]} 50. Ke1 {[%clk 0:00:08.7]} 50... g3 {[%clk 0:00:44.7]} 51. Rxc6
{[%clk 0:00:08.6]} 51... Rb1+ {[%clk 0:00:43.8]} 52. Kd2 {[%clk 0:00:08.2]}
52... g2 {[%clk 0:00:44.3]} 53. Rf6+ {[%clk 0:00:07.8]} 53... Ke4 {[%clk
0:00:43.7]} 54. Rg6 {[%clk 0:00:01.7]} 54... g1=Q {[%clk 0:00:42.6]} 55. Rxg1
{[%clk 0:00:02.6]} 55... Rxg1 {[%clk 0:00:42.3]} 56. Kc3 {[%clk 0:00:03.5]} 0-1

[Event "*** Titled Tuesday Blitz"]
[Site "Chess.com"]
[Date "2021.02.02"]
[Round "10"]
[White "Piotrek1979"]
[Black "Katheksis"]
[Result "0-1"]
[WhiteElo "2352"]
[BlackElo "2531"]
[TimeControl "180+1"]
[EndTime "11:56:39 PST"]
[Termination "Katheksis won on time"]

1. e4 {[%clk 0:03:00.9]} 1... c5 {[%clk 0:02:59.8]} 2. Nf3 {[%clk 0:03:00.5]}
2... g6 {[%clk 0:03:00.2]} 3. d4 {[%clk 0:02:59.1]} 3... cxd4 {[%clk 0:03:01.1]}
4. Nxd4 {[%clk 0:02:58.9]} 4... Bg7 {[%clk 0:03:00.6]} 5. Nc3 {[%clk 0:02:58.6]}
5... Nc6 {[%clk 0:03:01.1]} 6. Be3 {[%clk 0:02:58.5]} 6... Nf6 {[%clk
0:03:01.7]} 7. Bc4 {[%clk 0:02:57.4]} 7... O-O {[%clk 0:03:01.8]} 8. Bb3 {[%clk
0:02:55.5]} 8... Re8 {[%clk 0:03:00.5]} 9. O-O {[%clk 0:02:46.3]} 9... d6 {[%clk
0:03:00.1]} 10. h3 {[%clk 0:02:42.7]} 10... Bd7 {[%clk 0:02:58.1]} 11. f4 {[%clk
0:02:34.1]} 11... Rc8 {[%clk 0:02:55.4]} 12. Nf3 {[%clk 0:02:31.2]} 12... Rf8
{[%clk 0:02:19]} 13. g4 {[%clk 0:02:22.9]} 13... Na5 {[%clk 0:02:17.4]} 14. e5
{[%clk 0:02:19.5]} 14... Ne8 {[%clk 0:02:17.2]} 15. Bxa7 {[%clk 0:01:56]} 15...
b6 {[%clk 0:01:58.9]} 16. Nd5 {[%clk 0:01:54.6]} 16... Rc6 {[%clk 0:01:21.9]}
17. Nd4 {[%clk 0:01:52.6]} 17... dxe5 {[%clk 0:01:12.6]} 18. Nxc6 {[%clk
0:01:42.3]} 18... Bxc6 {[%clk 0:01:08]} 19. Bxb6 {[%clk 0:01:40.9]} 19... Qa8
{[%clk 0:01:08.1]} 20. Bxa5 {[%clk 0:01:38]} 20... Qxa5 {[%clk 0:01:09]} 21.
Nxe7+ {[%clk 0:01:37.5]} 21... Kh8 {[%clk 0:01:09.1]} 22. Nxc6 {[%clk
0:01:35.1]} 22... Qc5+ {[%clk 0:01:09.2]} 23. Rf2 {[%clk 0:01:12.4]} 23... Qxc6
{[%clk 0:01:03.9]} 24. Qd5 {[%clk 0:01:11.5]} 24... Qb6 {[%clk 0:01:01.3]} 25.
fxe5 {[%clk 0:01:08.2]} 25... Nc7 {[%clk 0:00:57.2]} 26. Qd6 {[%clk 0:01:05.9]}
26... Qa7 {[%clk 0:00:49.7]} 27. Kg2 {[%clk 0:00:40.8]} 27... Nb5 {[%clk
0:00:46.1]} 28. Qd5 {[%clk 0:00:32.3]} 28... Nd4 {[%clk 0:00:42.4]} 29. Rd1
{[%clk 0:00:24.5]} 29... Ne6 {[%clk 0:00:36.6]} 30. Rdd2 {[%clk 0:00:17.6]}
30... Qe3 {[%clk 0:00:35.7]} 31. Rde2 {[%clk 0:00:16.9]} 31... Nf4+ {[%clk
0:00:35.5]} 32. Rxf4 {[%clk 0:00:16.8]} 32... Qxf4 {[%clk 0:00:29.4]} 33. Rf2
{[%clk 0:00:15.5]} 33... Qxe5 {[%clk 0:00:26]} 34. Qxe5 {[%clk 0:00:14.3]} 34...
Bxe5 {[%clk 0:00:26.9]} 35. c3 {[%clk 0:00:12.6]} 35... f5 {[%clk 0:00:27.3]}
36. gxf5 {[%clk 0:00:11.7]} 36... gxf5 {[%clk 0:00:28.2]} 37. Kf3 {[%clk
0:00:11.7]} 37... Kg7 {[%clk 0:00:28.7]} 38. Rd2 {[%clk 0:00:10.3]} 38... Kf6
{[%clk 0:00:28.8]} 39. Rd7 {[%clk 0:00:09.9]} 39... Rb8 {[%clk 0:00:26.5]} 40.
Rf7+ {[%clk 0:00:09]} 40... Kg6 {[%clk 0:00:26.3]} 41. Ra7 {[%clk 0:00:08]}
41... Rd8 {[%clk 0:00:25.7]} 42. Ke2 {[%clk 0:00:05.7]} 42... Bf4 {[%clk
0:00:25.6]} 43. Kf3 {[%clk 0:00:01.4]} 43... Bg5 {[%clk 0:00:25.5]} 44. h4
{[%clk 0:00:02.3]} 44... Rd3+ {[%clk 0:00:25.5]} 45. Kf2 {[%clk 0:00:01.3]}
45... Bxh4+ {[%clk 0:00:25.1]} 0-1

[Event "*** Titled Tuesday Blitz"]
[Site "Chess.com"]
[Date "2021.02.02"]
[Round "10"]
[White "LamaChampetre"]
[Black "kai_nov"]
[Result "0-1"]
[WhiteElo "2230"]
[BlackElo "2394"]
[TimeControl "180+1"]
[EndTime "11:56:39 PST"]
[Termination "kai_nov won by resignation"]

1. d4 {[%clk 0:03:00.9]} 1... d5 {[%clk 0:02:59.5]} 2. c4 {[%clk 0:03:00.8]}
2... e6 {[%clk 0:02:59.3]} 3. Nf3 {[%clk 0:03:01.1]} 3... c6 {[%clk 0:02:58.6]}
4. g3 {[%clk 0:03:01]} 4... dxc4 {[%clk 0:02:57.8]} 5. Bg2 {[%clk 0:03:00.8]}
5... b5 {[%clk 0:02:57.2]} 6. a4 {[%clk 0:02:56.2]} 6... Bb7 {[%clk 0:02:51.1]}
7. O-O {[%clk 0:02:55.4]} 7... Nd7 {[%clk 0:02:48]} 8. Nc3 {[%clk 0:02:51.9]}
8... a6 {[%clk 0:02:44]} 9. e4 {[%clk 0:02:34.8]} 9... h6 {[%clk 0:02:39]} 10.
d5 {[%clk 0:02:31.4]} 10... e5 {[%clk 0:02:37]} 11. dxc6 {[%clk 0:02:25.9]}
11... Bxc6 {[%clk 0:02:36.3]} 12. axb5 {[%clk 0:02:24.6]} 12... axb5 {[%clk
0:02:35.9]} 13. Rxa8 {[%clk 0:02:24.8]} 13... Qxa8 {[%clk 0:02:34.3]} 14. Nd5
{[%clk 0:02:20.4]} 14... Qb7 {[%clk 0:02:24.8]} 15. Be3 {[%clk 0:02:03.2]} 15...
Bxd5 {[%clk 0:02:00.2]} 16. exd5 {[%clk 0:02:01.5]} 16... Ngf6 {[%clk
0:01:55.3]} 17. Nd2 {[%clk 0:01:54.1]} 17... Bd6 {[%clk 0:01:53.3]} 18. f4
{[%clk 0:01:18.7]} 18... O-O {[%clk 0:01:50.5]} 19. Nb1 {[%clk 0:01:08.8]} 19...
exf4 {[%clk 0:01:43]} 20. Bxf4 {[%clk 0:01:07.8]} 20... Bxf4 {[%clk 0:01:41.8]}
21. Rxf4 {[%clk 0:01:05.6]} 21... Re8 {[%clk 0:01:38.4]} 22. Nc3 {[%clk
0:01:02.5]} 22... Qb6+ {[%clk 0:01:30.6]} 23. Kh1 {[%clk 0:01:00.3]} 23... Ne5
{[%clk 0:01:23.5]} 24. Ne4 {[%clk 0:00:30.2]} 24... Nfg4 {[%clk 0:01:04.9]} 25.
d6 {[%clk 0:00:23.9]} 25... Ne3 {[%clk 0:00:54.3]} 26. Qh5 {[%clk 0:00:17.5]}
26... Nxg2 {[%clk 0:00:30.9]} 27. Kxg2 {[%clk 0:00:16.5]} 27... Qc6 {[%clk
0:00:16.4]} 28. d7 {[%clk 0:00:13.9]} 28... Qxd7 {[%clk 0:00:14.9]} 29. Kg1
{[%clk 0:00:07.9]} 29... Nd3 {[%clk 0:00:13.5]} 30. Qf3 {[%clk 0:00:04.2]} 30...
Nxf4 {[%clk 0:00:12.2]} 31. Qxf4 {[%clk 0:00:05.1]} 31... Qd4+ {[%clk 0:00:12]}
32. Nf2 {[%clk 0:00:04]} 32... Qxf4 {[%clk 0:00:12]} 33. gxf4 {[%clk 0:00:04.9]}
33... Re2 {[%clk 0:00:12.1]} 34. Kg2 {[%clk 0:00:04.3]} 34... Rxb2 {[%clk
0:00:12]} 35. Kf3 {[%clk 0:00:05.2]} 35... Rxf2+ {[%clk 0:00:12]} 36. Kxf2
{[%clk 0:00:04.7]} 36... b4 {[%clk 0:00:12.3]} 37. Ke3 {[%clk 0:00:05]} 37... b3
{[%clk 0:00:12.9]} 38. Kd2 {[%clk 0:00:05]} 38... b2 {[%clk 0:00:13.1]} 39. Kc2
{[%clk 0:00:04.9]} 39... c3 {[%clk 0:00:13.4]} 40. h4 {[%clk 0:00:04.1]} 40...
f5 {[%clk 0:00:13.2]} 41. h5 {[%clk 0:00:05]} 41... Kf7 {[%clk 0:00:13.5]} 42.
Kb1 {[%clk 0:00:04.8]} 42... g6 {[%clk 0:00:13.8]} 43. Kc2 {[%clk 0:00:04.9]}
43... gxh5 {[%clk 0:00:13.7]} 44. Kb1 {[%clk 0:00:05.8]} 44... h4 {[%clk
0:00:14]} 45. Kc2 {[%clk 0:00:06.7]} 0-1

[Event "*** Titled Tuesday Blitz"]
[Site "Chess.com"]
[Date "2021.02.02"]
[Round "10"]
[White "carlocapau"]
[Black "SergeyShtyka"]
[Result "0-1"]
[WhiteElo "2312"]
[BlackElo "2465"]
[TimeControl "180+1"]
[EndTime "11:56:40 PST"]
[Termination "SergeyShtyka won by resignation"]

1. d4 {[%clk 0:03:00.9]} 1... c5 {[%clk 0:03:00.3]} 2. d5 {[%clk 0:03:01]} 2...
e5 {[%clk 0:03:00.8]} 3. e4 {[%clk 0:02:58.9]} 3... d6 {[%clk 0:03:00.9]} 4. Be2
{[%clk 0:02:58.2]} 4... Be7 {[%clk 0:03:01]} 5. Nf3 {[%clk 0:02:58.1]} 5... Nf6
{[%clk 0:03:00.8]} 6. Nc3 {[%clk 0:02:57.2]} 6... Bg4 {[%clk 0:03:00.8]} 7. Nd2
{[%clk 0:02:56]} 7... Bxe2 {[%clk 0:03:00.7]} 8. Qxe2 {[%clk 0:02:56.9]} 8...
O-O {[%clk 0:03:00.7]} 9. O-O {[%clk 0:02:56.6]} 9... Nbd7 {[%clk 0:03:00.5]}
10. a4 {[%clk 0:02:51.6]} 10... Ne8 {[%clk 0:03:00.2]} 11. b3 {[%clk 0:02:49.1]}
11... Bg5 {[%clk 0:03:00]} 12. Nc4 {[%clk 0:02:46.9]} 12... Bxc1 {[%clk
0:02:59.7]} 13. Rfxc1 {[%clk 0:02:47.8]} 13... Qe7 {[%clk 0:02:57.8]} 14. Rcb1
{[%clk 0:02:45.8]} 14... g6 {[%clk 0:02:56.6]} 15. a5 {[%clk 0:02:45.7]} 15...
f5 {[%clk 0:02:52.8]} 16. b4 {[%clk 0:02:44.2]} 16... cxb4 {[%clk 0:02:48.3]}
17. Rxb4 {[%clk 0:02:45.1]} 17... Nc5 {[%clk 0:02:48]} 18. exf5 {[%clk
0:02:40.5]} 18... gxf5 {[%clk 0:02:42.6]} 19. Na4 {[%clk 0:02:36.2]} 19... Nxa4
{[%clk 0:02:23.5]} 20. Raxa4 {[%clk 0:02:37.1]} 20... Nf6 {[%clk 0:02:23.6]} 21.
Ne3 {[%clk 0:02:29.9]} 21... Ne4 {[%clk 0:02:21]} 22. Nxf5 {[%clk 0:02:20.2]}
22... Rxf5 {[%clk 0:02:20.4]} 23. Rxe4 {[%clk 0:02:19.7]} 23... Raf8 {[%clk
0:02:20.8]} 24. f3 {[%clk 0:02:18.5]} 24... Kh8 {[%clk 0:02:20.3]} 25. Rab4
{[%clk 0:02:15.6]} 25... Qf7 {[%clk 0:02:18.8]} 26. c4 {[%clk 0:02:08.6]} 26...
Rg8 {[%clk 0:02:17.1]} 27. Kh1 {[%clk 0:02:03.2]} 27... Qc7 {[%clk 0:02:15.7]}
28. Rb5 {[%clk 0:01:56.6]} 28... Rfg5 {[%clk 0:02:08.2]} 29. g4 {[%clk
0:01:51.7]} 29... R5g7 {[%clk 0:02:06.2]} 30. Qb2 {[%clk 0:01:49.2]} 30... h5
{[%clk 0:02:02.7]} 31. h3 {[%clk 0:01:47.4]} 31... hxg4 {[%clk 0:02:01.8]} 32.
hxg4 {[%clk 0:01:45.9]} 32... Qe7 {[%clk 0:01:58.3]} 33. Kg2 {[%clk 0:01:36.7]}
33... Rh7 {[%clk 0:01:52.4]} 34. Qf2 {[%clk 0:01:21.4]} 34... Qg5 {[%clk
0:01:52]} 35. c5 {[%clk 0:01:14.5]} 35... Rg6 {[%clk 0:01:43.8]} 36. cxd6 {[%clk
0:00:22.1]} 36... Rgh6 {[%clk 0:01:43.4]} 37. Kf1 {[%clk 0:00:17.6]} 37... Rh2
{[%clk 0:01:35.9]} 38. Qe3 {[%clk 0:00:15.9]} 38... Qh4 {[%clk 0:01:19]} 39. d7
{[%clk 0:00:14.2]} 39... Rh1+ {[%clk 0:01:10.8]} 40. Ke2 {[%clk 0:00:14.2]}
40... Re1+ {[%clk 0:01:10.7]} 41. Kd2 {[%clk 0:00:14.6]} 41... Rxe3 {[%clk
0:01:10.7]} 42. Kxe3 {[%clk 0:00:14.1]} 42... Qe1+ {[%clk 0:01:04.8]} 43. Kd3
{[%clk 0:00:14]} 43... Qd1+ {[%clk 0:01:02.8]} 44. Kc4 {[%clk 0:00:10.5]} 44...
Qc2+ {[%clk 0:00:58.5]} 45. Kb4 {[%clk 0:00:09.4]} 45... Rxd7 {[%clk 0:00:52.4]}
46. Rc5 {[%clk 0:00:09.3]} 46... Qd2+ {[%clk 0:00:47]} 47. Kc4 {[%clk
0:00:09.5]} 47... Qc1+ {[%clk 0:00:42]} 48. Kb5 {[%clk 0:00:06.1]} 48... Qb2+
{[%clk 0:00:39.1]} 49. Kc4 {[%clk 0:00:05.8]} 49... Kg7 {[%clk 0:00:33.8]} 50.
f4 {[%clk 0:00:05.7]} 50... exf4 {[%clk 0:00:31.9]} 51. Rxf4 {[%clk 0:00:05.6]}
51... Qc1+ {[%clk 0:00:31]} 0-1

[Event "*** Titled Tuesday Blitz"]
[Site "Chess.com"]
[Date "2021.02.02"]
[Round "10"]
[White "Tiradini007"]
[Black "Coiote53"]
[Result "1/2-1/2"]
[WhiteElo "2219"]
[BlackElo "2356"]
[TimeControl "180+1"]
[EndTime "11:56:43 PST"]
[Termination "Game drawn by repetition"]

1. e4 {[%clk 0:03:00.9]} 1... c5 {[%clk 0:02:58.7]} 2. Nc3 {[%clk 0:02:59.5]}
2... d6 {[%clk 0:02:59]} 3. g3 {[%clk 0:02:58.7]} 3... g6 {[%clk 0:02:57.5]} 4.
Bg2 {[%clk 0:02:58.3]} 4... Bg7 {[%clk 0:02:58.1]} 5. f4 {[%clk 0:02:57.5]} 5...
Nc6 {[%clk 0:02:58.6]} 6. Nf3 {[%clk 0:02:56.7]} 6... Nd4 {[%clk 0:02:57.6]} 7.
O-O {[%clk 0:02:56.2]} 7... Nxf3+ {[%clk 0:02:54.2]} 8. Qxf3 {[%clk 0:02:53.5]}
8... Nf6 {[%clk 0:02:54.4]} 9. h3 {[%clk 0:02:53.1]} 9... O-O {[%clk 0:02:54.3]}
10. d3 {[%clk 0:02:52.9]} 10... Rb8 {[%clk 0:02:52.2]} 11. Be3 {[%clk
0:02:50.1]} 11... b5 {[%clk 0:02:51.9]} 12. a3 {[%clk 0:02:46.6]} 12... a5
{[%clk 0:02:51.3]} 13. Rae1 {[%clk 0:02:44.6]} 13... b4 {[%clk 0:02:51.7]} 14.
axb4 {[%clk 0:02:43.9]} 14... axb4 {[%clk 0:02:52.6]} 15. Nd1 {[%clk 0:02:43.9]}
15... Bb7 {[%clk 0:02:47.8]} 16. g4 {[%clk 0:02:42.9]} 16... c4 {[%clk 0:02:48]}
17. f5 {[%clk 0:02:33.4]} 17... b3 {[%clk 0:02:46.8]} 18. cxb3 {[%clk 0:02:19]}
18... cxd3 {[%clk 0:02:46]} 19. Bg5 {[%clk 0:02:16.1]} 19... Nxe4 {[%clk
0:02:36.5]} 20. Rxe4 {[%clk 0:02:08]} 20... Bxe4 {[%clk 0:02:37.4]} 21. Qxe4
{[%clk 0:02:06.9]} 21... f6 {[%clk 0:02:27]} 22. Bd2 {[%clk 0:01:55.7]} 22... g5
{[%clk 0:02:20.2]} 23. Bc3 {[%clk 0:01:53.6]} 23... Re8 {[%clk 0:02:16.1]} 24.
Qxd3 {[%clk 0:01:47.3]} 24... Qb6+ {[%clk 0:02:14.9]} 25. Kh1 {[%clk 0:01:43.2]}
25... Kh8 {[%clk 0:02:14.4]} 26. Bd5 {[%clk 0:01:41.5]} 26... Rbc8 {[%clk
0:02:07.1]} 27. Re1 {[%clk 0:01:38.4]} 27... h5 {[%clk 0:01:51.2]} 28. Bf7
{[%clk 0:01:32.7]} 28... Qb7+ {[%clk 0:01:48.4]} 29. Qe4 {[%clk 0:01:31.3]}
29... Qa7 {[%clk 0:01:34.2]} 30. Bxe8 {[%clk 0:01:26.7]} 30... Rxe8 {[%clk
0:01:34]} 31. Qc6 {[%clk 0:01:20.1]} 31... Rg8 {[%clk 0:01:28.6]} 32. Kg2 {[%clk
0:01:17.8]} 32... Qb8 {[%clk 0:01:21.3]} 33. Qd5 {[%clk 0:01:07.5]} 33... Re8
{[%clk 0:01:13.3]} 34. b4 {[%clk 0:01:06.2]} 34... Qb6 {[%clk 0:01:09.2]} 35.
Nf2 {[%clk 0:01:02.6]} 35... h4 {[%clk 0:01:02.1]} 36. Ne4 {[%clk 0:00:52.6]}
36... Rc8 {[%clk 0:00:57.3]} 37. Qf7 {[%clk 0:00:35.9]} 37... Qb7 {[%clk
0:00:48]} 38. Kh2 {[%clk 0:00:33.6]} 38... d5 {[%clk 0:00:44.1]} 39. Nxg5 {[%clk
0:00:31.7]} 39... d4 {[%clk 0:00:43]} 40. Qh5+ {[%clk 0:00:29]} 40... Kg8 {[%clk
0:00:42.9]} 41. Qh7+ {[%clk 0:00:28.6]} 41... Kf8 {[%clk 0:00:43]} 42. Ne6+
{[%clk 0:00:28.2]} 42... Ke8 {[%clk 0:00:43.6]} 43. Qxg7 {[%clk 0:00:20.5]}
43... dxc3 {[%clk 0:00:37.1]} 44. Qg8+ {[%clk 0:00:19.5]} 44... Kd7 {[%clk
0:00:37.4]} 45. Nc5+ {[%clk 0:00:19.1]} 45... Kc6 {[%clk 0:00:37]} 46. Nxb7
{[%clk 0:00:17.8]} 46... Rxg8 {[%clk 0:00:36.8]} 47. bxc3 {[%clk 0:00:16.7]}
47... Kxb7 {[%clk 0:00:36.7]} 48. Rxe7+ {[%clk 0:00:16.8]} 48... Kc6 {[%clk
0:00:37.4]} 49. Re6+ {[%clk 0:00:16.5]} 49... Kd5 {[%clk 0:00:38.1]} 50. Rxf6
{[%clk 0:00:16.8]} 50... Rc8 {[%clk 0:00:38.7]} 51. Rh6 {[%clk 0:00:16.3]} 51...
Rxc3 {[%clk 0:00:38.8]} 52. Rxh4 {[%clk 0:00:16.6]} 52... Ke4 {[%clk 0:00:39.4]}
53. Rh8 {[%clk 0:00:15.1]} 53... Kf3 {[%clk 0:00:39.7]} 54. f6 {[%clk
0:00:14.9]} 54... Rc2+ {[%clk 0:00:39.7]} 55. Kg1 {[%clk 0:00:14.5]} 55... Rc1+
{[%clk 0:00:40]} 56. Kh2 {[%clk 0:00:14.7]} 56... Rc2+ {[%clk 0:00:40.9]} 57.
Kg1 {[%clk 0:00:14.9]} 57... Rc1+ {[%clk 0:00:41.8]} 58. Kh2 {[%clk 0:00:14.8]}
58... Rc2+ {[%clk 0:00:42.7]} 1/2-1/2

[Event "*** Titled Tuesday Blitz"]
[Site "Chess.com"]
[Date "2021.02.02"]
[Round "10"]
[White "Dii210"]
[Black "ChelsieMonica"]
[Result "1-0"]
[WhiteElo "2260"]
[BlackElo "2359"]
[TimeControl "180+1"]
[EndTime "11:56:43 PST"]
[Termination "Dii210 won by resignation"]

1. e4 {[%clk 0:03:00.9]} 1... e5 {[%clk 0:02:59.2]} 2. Nf3 {[%clk 0:03:00.6]}
2... Nc6 {[%clk 0:03:00.1]} 3. Bb5 {[%clk 0:02:59.1]} 3... f5 {[%clk 0:02:59.3]}
4. Nc3 {[%clk 0:02:56]} 4... Nf6 {[%clk 0:02:55.9]} 5. d3 {[%clk 0:02:44]} 5...
fxe4 {[%clk 0:02:55.5]} 6. dxe4 {[%clk 0:02:43.9]} 6... Bc5 {[%clk 0:02:55.4]}
7. O-O {[%clk 0:02:43.5]} 7... O-O {[%clk 0:02:51]} 8. Bxc6 {[%clk 0:02:42.5]}
8... bxc6 {[%clk 0:02:50]} 9. Nxe5 {[%clk 0:02:42.2]} 9... Qe8 {[%clk
0:02:49.8]} 10. Nd3 {[%clk 0:02:41.8]} 10... Bb6 {[%clk 0:02:41.2]} 11. e5
{[%clk 0:02:41.6]} 11... Nd5 {[%clk 0:02:39.6]} 12. Nxd5 {[%clk 0:02:41]} 12...
cxd5 {[%clk 0:02:40.5]} 13. Bf4 {[%clk 0:02:21.3]} 13... Ba6 {[%clk 0:02:38.2]}
14. Bg3 {[%clk 0:02:09.7]} 14... Rb8 {[%clk 0:02:34.5]} 15. b3 {[%clk
0:02:07.3]} 15... Bd4 {[%clk 0:02:32]} 16. Rb1 {[%clk 0:02:01.2]} 16... c5
{[%clk 0:02:32]} 17. e6 {[%clk 0:01:41.5]} 17... Rb6 {[%clk 0:02:28.9]} 18. exd7
{[%clk 0:01:38.5]} 18... Qxd7 {[%clk 0:02:29.8]} 19. Qd2 {[%clk 0:01:34.2]}
19... Qf5 {[%clk 0:02:25.6]} 20. Rbd1 {[%clk 0:01:31.2]} 20... Qf6 {[%clk
0:02:19.4]} 21. Kh1 {[%clk 0:00:58.4]} 21... Kh8 {[%clk 0:02:02.8]} 22. Qe2
{[%clk 0:00:55.1]} 22... Re6 {[%clk 0:02:01.2]} 23. Qg4 {[%clk 0:00:55]} 23...
Re4 {[%clk 0:01:59]} 24. f4 {[%clk 0:00:54.9]} 24... Bc8 {[%clk 0:01:56.4]} 25.
Qh5 {[%clk 0:00:50.9]} 25... Bf5 {[%clk 0:01:52.8]} 26. Ne5 {[%clk 0:00:50.5]}
26... g6 {[%clk 0:01:51.1]} 27. Qf3 {[%clk 0:00:47.1]} 27... Qe6 {[%clk
0:01:47.2]} 28. c3 {[%clk 0:00:41.7]} 28... Re3 {[%clk 0:01:42.6]} 29. cxd4
{[%clk 0:00:36.5]} 29... Rxf3 {[%clk 0:01:42.7]} 30. Nxf3 {[%clk 0:00:37.4]}
30... c4 {[%clk 0:01:24.6]} 31. bxc4 {[%clk 0:00:35.4]} 31... dxc4 {[%clk
0:01:25.5]} 32. d5 {[%clk 0:00:36]} 32... Qa6 {[%clk 0:01:24.1]} 33. Bf2 {[%clk
0:00:33]} 33... Bd3 {[%clk 0:01:21.8]} 34. Rfe1 {[%clk 0:00:29.9]} 34... Kg8
{[%clk 0:01:18.4]} 35. Bd4 {[%clk 0:00:28.7]} 35... Rxf4 {[%clk 0:01:10.5]} 36.
Re8+ {[%clk 0:00:25.2]} 36... Kf7 {[%clk 0:01:09.2]} 37. Rde1 {[%clk 0:00:25.1]}
37... Rxd4 {[%clk 0:00:46.2]} 38. R1e7+ {[%clk 0:00:21.6]} 38... Kf6 {[%clk
0:00:45.2]} 39. Re6+ {[%clk 0:00:20.7]} 39... Kf7 {[%clk 0:00:34.3]} 40. R8e7+
{[%clk 0:00:16]} 40... Kf8 {[%clk 0:00:34.1]} 41. Rxa6 {[%clk 0:00:16.2]} 41...
Kxe7 {[%clk 0:00:28]} 42. Nxd4 {[%clk 0:00:15.4]} 42... Kd7 {[%clk 0:00:27.5]}
43. Rxa7+ {[%clk 0:00:15.2]} 43... Kd6 {[%clk 0:00:28.4]} 44. Nb5+ {[%clk
0:00:14.7]} 44... Kxd5 {[%clk 0:00:28.4]} 45. Nc3+ {[%clk 0:00:15.6]} 45... Kd4
{[%clk 0:00:28.7]} 46. Ra3 {[%clk 0:00:15.9]} 46... Kc5 {[%clk 0:00:27.7]} 47.
Ra4 {[%clk 0:00:15.5]} 47... Kd4 {[%clk 0:00:27.7]} 48. Nb5+ {[%clk 0:00:15.6]}
48... Ke3 {[%clk 0:00:27.8]} 49. Kg1 {[%clk 0:00:14.4]} 49... Kd2 {[%clk
0:00:27.9]} 50. Ra7 {[%clk 0:00:14.7]} 50... c3 {[%clk 0:00:27.7]} 51. Nxc3
{[%clk 0:00:15.1]} 51... Kxc3 {[%clk 0:00:28.6]} 52. Rxh7 {[%clk 0:00:15.8]}
52... Kb2 {[%clk 0:00:29]} 53. Ra7 {[%clk 0:00:16.7]} 1-0